[Event "*** SCC Grand Prix: Titled Tuesday Blitz"]
[Site "Chess.com"]
[Date "2020.10.13"]
[Round "4"]
[White "DenLaz"]
[Black "MFBerna"]
[Result "1-0"]
[WhiteElo "2807"]
[BlackElo "2398"]
[TimeControl "180+1"]
[EndTime "10:41:36 PDT"]
[Termination "DenLaz won by resignation"]

1. Nf3 {[%clk 0:03:00.9]} 1... d5 {[%clk 0:02:58.3]} 2. c4 {[%clk 0:03:01.1]}
2... c6 {[%clk 0:02:56.2]} 3. e3 {[%clk 0:03:00.3]} 3... Nf6 {[%clk 0:02:55.7]}
4. d4 {[%clk 0:03:00]} 4... e6 {[%clk 0:02:53.5]} 5. b3 {[%clk 0:03:00.2]} 5...
Nbd7 {[%clk 0:02:53.8]} 6. Bb2 {[%clk 0:03:00]} 6... Bd6 {[%clk 0:02:53.5]} 7.
Bd3 {[%clk 0:03:00.4]} 7... O-O {[%clk 0:02:53.5]} 8. O-O {[%clk 0:03:01]} 8...
b6 {[%clk 0:02:52.6]} 9. Nbd2 {[%clk 0:03:01.4]} 9... Bb7 {[%clk 0:02:53]} 10.
Qe2 {[%clk 0:03:01.6]} 10... c5 {[%clk 0:02:53]} 11. cxd5 {[%clk 0:02:55.9]}
11... Nxd5 {[%clk 0:02:44.9]} 12. Rfd1 {[%clk 0:02:49.9]} 12... Qe7 {[%clk
0:02:40.5]} 13. Nc4 {[%clk 0:02:46.4]} 13... Bc7 {[%clk 0:02:38.4]} 14. Rac1
{[%clk 0:02:46.4]} 14... Rfd8 {[%clk 0:02:29.4]} 15. Bb1 {[%clk 0:02:40.6]}
15... Rac8 {[%clk 0:02:24.4]} 16. h3 {[%clk 0:02:18.3]} 16... Bb8 {[%clk
0:02:10.5]} 17. Qc2 {[%clk 0:01:59.4]} 17... N5f6 {[%clk 0:02:05]} 18. dxc5
{[%clk 0:01:44.9]} 18... Be4 {[%clk 0:01:50.7]} 19. Qe2 {[%clk 0:01:41]} 19...
Bxb1 {[%clk 0:01:40.3]} 20. Rxb1 {[%clk 0:01:41.9]} 20... Nxc5 {[%clk
0:01:40.8]} 21. Nfe5 {[%clk 0:01:26.2]} 21... Qb7 {[%clk 0:01:30]} 22. Qf3
{[%clk 0:01:19.7]} 22... Qxf3 {[%clk 0:01:28.2]} 23. gxf3 {[%clk 0:01:20.6]}
23... Bxe5 {[%clk 0:01:25.9]} 24. Nxe5 {[%clk 0:01:18]} 24... Nd5 {[%clk
0:01:05]} 25. Kf1 {[%clk 0:01:03.2]} 25... f6 {[%clk 0:01:02.9]} 26. Nc4 {[%clk
0:01:00.9]} 26... Nb4 {[%clk 0:00:47.3]} 27. a3 {[%clk 0:00:48]} 27... Nd5
{[%clk 0:00:23.4]} 28. Nd2 {[%clk 0:00:34.9]} 28... Kf7 {[%clk 0:00:17.8]} 29.
Ke2 {[%clk 0:00:33.5]} 29... Rd7 {[%clk 0:00:16.1]} 30. Rbc1 {[%clk 0:00:29.2]}
30... Rcd8 {[%clk 0:00:15.4]} 31. b4 {[%clk 0:00:21.9]} 31... Na4 {[%clk
0:00:12.2]} 32. Ba1 {[%clk 0:00:21.9]} 32... e5 {[%clk 0:00:08.6]} 33. Ne4
{[%clk 0:00:19]} 33... h6 {[%clk 0:00:03.4]} 34. Ke1 {[%clk 0:00:13.8]} 34... f5
{[%clk 0:00:03.6]} 35. Ng3 {[%clk 0:00:13]} 35... Ke6 {[%clk 0:00:03.7]} 36. Ne2
{[%clk 0:00:12.4]} 36... g6 {[%clk 0:00:03.7]} 37. h4 {[%clk 0:00:05.7]} 37...
b5 {[%clk 0:00:03.9]} 38. h5 {[%clk 0:00:05.4]} 38... gxh5 {[%clk 0:00:04.8]}
39. f4 {[%clk 0:00:04.3]} 39... exf4 {[%clk 0:00:04.7]} 40. Nd4+ {[%clk
0:00:05]} 40... Kf7 {[%clk 0:00:04]} 41. Nxf5 {[%clk 0:00:05.5]} 41... fxe3
{[%clk 0:00:04.8]} 42. fxe3 {[%clk 0:00:06.4]} 42... Nab6 {[%clk 0:00:05.1]} 43.
e4 {[%clk 0:00:06]} 43... Re8 {[%clk 0:00:03.8]} 44. Kf2 {[%clk 0:00:03.6]}
44... Rxe4 {[%clk 0:00:03.2]} 45. Rc6 {[%clk 0:00:03.4]} 45... Rf4+ {[%clk
0:00:02.7]} 46. Kg3 {[%clk 0:00:04.1]} 46... Rxf5 {[%clk 0:00:03.6]} 47. Rxh6
{[%clk 0:00:04.5]} 47... Rg5+ {[%clk 0:00:02.1]} 48. Kh4 {[%clk 0:00:03.7]}
48... Rg4+ {[%clk 0:00:02.5]} 49. Kxh5 {[%clk 0:00:04.1]} 49... Nf4+ {[%clk
0:00:02.5]} 50. Kxg4 {[%clk 0:00:04.2]} 50... Rxd1 {[%clk 0:00:02.8]} 51. Be5
{[%clk 0:00:04.8]} 51... Ng6 {[%clk 0:00:02.5]} 52. Bb8 {[%clk 0:00:03.3]} 52...
Rg1+ {[%clk 0:00:02.9]} 53. Kf5 {[%clk 0:00:03.2]} 53... Rf1+ {[%clk 0:00:02.5]}
54. Ke4 {[%clk 0:00:03.4]} 54... Re1+ {[%clk 0:00:02.8]} 55. Kf5 {[%clk
0:00:03.4]} 55... Ne7+ {[%clk 0:00:02.2]} 56. Kg4 {[%clk 0:00:03]} 56... Nbd5
{[%clk 0:00:02.3]} 57. Bxa7 {[%clk 0:00:03]} 57... Rg1+ {[%clk 0:00:02.2]} 58.
Bxg1 {[%clk 0:00:02.1]} 58... Ng8 {[%clk 0:00:01.8]} 59. Rd6 {[%clk 0:00:01.9]}
59... Ngf6+ {[%clk 0:00:02.6]} 60. Kf3 {[%clk 0:00:02.1]} 60... Ke7 {[%clk
0:00:03.2]} 61. Rc6 {[%clk 0:00:02.8]} 61... Kd7 {[%clk 0:00:03.1]} 62. Rc5
{[%clk 0:00:03.5]} 62... Kd6 {[%clk 0:00:02.8]} 63. Bd4 {[%clk 0:00:04.4]} 63...
Nd7 {[%clk 0:00:02.7]} 64. Ke4 {[%clk 0:00:05.3]} 64... Nxc5+ {[%clk 0:00:02.8]}
65. Bxc5+ {[%clk 0:00:05.3]} 65... Kc6 {[%clk 0:00:03.3]} 66. Kd4 {[%clk
0:00:06.2]} 66... Nc7 {[%clk 0:00:03.1]} 67. Ke5 {[%clk 0:00:06.2]} 67... Na6
{[%clk 0:00:03.1]} 68. Bd6 {[%clk 0:00:06.2]} 68... Kb6 {[%clk 0:00:03]} 69. Kd5
{[%clk 0:00:06.7]} 69... Kb7 {[%clk 0:00:02.5]} 70. Kd4 {[%clk 0:00:05.6]} 70...
Kc6 {[%clk 0:00:02.7]} 71. Ke5 {[%clk 0:00:06.2]} 71... Kb6 {[%clk 0:00:03.2]}
72. Ke6 {[%clk 0:00:05.2]} 72... Kc6 {[%clk 0:00:03]} 73. Be5 {[%clk 0:00:05.8]}
73... Kb6 {[%clk 0:00:02]} 74. Kd7 {[%clk 0:00:06.5]} 74... Kb7 {[%clk
0:00:02.2]} 75. Bd6 {[%clk 0:00:07.2]} 75... Kb6 {[%clk 0:00:02.1]} 76. Kc8
{[%clk 0:00:07.8]} 76... Kc6 {[%clk 0:00:02.1]} 77. Bh2 {[%clk 0:00:08.2]} 77...
Kb6 {[%clk 0:00:02.4]} 78. Be5 {[%clk 0:00:05.9]} 78... Kc6 {[%clk 0:00:02.7]}
79. Bf4 {[%clk 0:00:05.5]} 79... Kb6 {[%clk 0:00:02.4]} 80. Kd7 {[%clk
0:00:04.9]} 80... Nc5+ {[%clk 0:00:01.1]} 81. bxc5+ {[%clk 0:00:04.5]} 81...
Kxc5 {[%clk 0:00:02]} 82. Bd6+ {[%clk 0:00:05.2]} 82... Kc4 {[%clk 0:00:02.9]}
83. Bb4 {[%clk 0:00:06.1]} 83... Kb3 {[%clk 0:00:02.3]} 84. Kc6 {[%clk 0:00:07]}
84... Ka4 {[%clk 0:00:03.2]} 85. Kc5 {[%clk 0:00:07.7]} 1-0

[Event "*** SCC Grand Prix: Titled Tuesday Blitz"]
[Site "Chess.com"]
[Date "2020.10.13"]
[Round "4"]
[White "Cocaino74"]
[Black "elohunter1999"]
[Result "1/2-1/2"]
[WhiteElo "2382"]
[BlackElo "2600"]
[TimeControl "180+1"]
[EndTime "10:41:59 PDT"]
[Termination "Game drawn - insufficient material"]

1. e4 {[%clk 0:03:00.9]} 1... e5 {[%clk 0:02:54.5]} 2. Nf3 {[%clk 0:03:00.5]}
2... Nc6 {[%clk 0:02:55.1]} 3. Bc4 {[%clk 0:03:01]} 3... Bc5 {[%clk 0:02:54.1]}
4. c3 {[%clk 0:03:00.8]} 4... Nf6 {[%clk 0:02:54]} 5. d4 {[%clk 0:03:00.7]} 5...
exd4 {[%clk 0:02:53.9]} 6. cxd4 {[%clk 0:03:01.6]} 6... Bb4+ {[%clk 0:02:54]} 7.
Bd2 {[%clk 0:03:02.2]} 7... Bxd2+ {[%clk 0:02:52.7]} 8. Nbxd2 {[%clk 0:03:03.1]}
8... d5 {[%clk 0:02:52.7]} 9. exd5 {[%clk 0:03:04]} 9... Nxd5 {[%clk 0:02:53.3]}
10. Qb3 {[%clk 0:03:04.2]} 10... Nce7 {[%clk 0:02:50.2]} 11. O-O {[%clk
0:03:03.8]} 11... O-O {[%clk 0:02:49.7]} 12. Rfe1 {[%clk 0:03:04.4]} 12... c6
{[%clk 0:02:48.5]} 13. Rac1 {[%clk 0:03:03.8]} 13... Bf5 {[%clk 0:02:46.8]} 14.
Bxd5 {[%clk 0:02:34.3]} 14... Nxd5 {[%clk 0:02:34.7]} 15. Qxb7 {[%clk
0:02:34.1]} 15... Rb8 {[%clk 0:02:07]} 16. Qxc6 {[%clk 0:02:33.6]} 16... Rxb2
{[%clk 0:02:04.6]} 17. Rc5 {[%clk 0:02:33.6]} 17... Nb4 {[%clk 0:01:59.2]} 18.
Qc7 {[%clk 0:01:49.2]} 18... Nd3 {[%clk 0:01:49.6]} 19. Qxd8 {[%clk 0:01:43.8]}
19... Rxd8 {[%clk 0:01:44.6]} 20. Rd5 {[%clk 0:01:43.5]} 20... Rdb8 {[%clk
0:01:25]} 21. Re3 {[%clk 0:01:24]} 21... Be6 {[%clk 0:01:19.7]} 22. Ra5 {[%clk
0:01:23.8]} 22... Rb1+ {[%clk 0:00:37]} 23. Nf1 {[%clk 0:00:59.6]} 23... Nf4
{[%clk 0:00:28.1]} 24. g3 {[%clk 0:00:39.8]} 24... Nd5 {[%clk 0:00:26.9]} 25.
Rb3 {[%clk 0:00:38]} 25... R8xb3 {[%clk 0:00:24.7]} 26. axb3 {[%clk 0:00:38.9]}
26... Rxb3 {[%clk 0:00:23]} 27. N1d2 {[%clk 0:00:38.5]} 27... Rb7 {[%clk
0:00:21.6]} 28. Ne5 {[%clk 0:00:33.5]} 28... Ne7 {[%clk 0:00:13.9]} 29. Nd3
{[%clk 0:00:21.4]} 29... Bd5 {[%clk 0:00:12.2]} 30. f3 {[%clk 0:00:18.3]} 30...
f6 {[%clk 0:00:12.2]} 31. Kf2 {[%clk 0:00:18.1]} 31... Kf7 {[%clk 0:00:12.2]}
32. Nc5 {[%clk 0:00:17]} 32... Rb2 {[%clk 0:00:12.2]} 33. Ke3 {[%clk 0:00:17.4]}
33... Nf5+ {[%clk 0:00:12.3]} 34. Kd3 {[%clk 0:00:17.5]} 34... Nxd4 {[%clk
0:00:11]} 35. Kc3 {[%clk 0:00:15.4]} 35... Nc6 {[%clk 0:00:10.1]} 36. Rxa7+
{[%clk 0:00:04.9]} 36... Nxa7 {[%clk 0:00:11]} 37. Kxb2 {[%clk 0:00:05.8]} 37...
Nb5 {[%clk 0:00:10.2]} 38. Kc2 {[%clk 0:00:05.7]} 38... Nd4+ {[%clk 0:00:09.1]}
39. Kd3 {[%clk 0:00:06.4]} 39... Nxf3 {[%clk 0:00:10]} 40. Nxf3 {[%clk
0:00:05.9]} 40... Bxf3 {[%clk 0:00:10.9]} 41. Ke3 {[%clk 0:00:06.2]} 41... Bc6
{[%clk 0:00:10.8]} 42. h4 {[%clk 0:00:06.5]} 42... Kg6 {[%clk 0:00:10.1]} 43.
Kf4 {[%clk 0:00:06.6]} 43... Kf7 {[%clk 0:00:09.8]} 44. Ke3 {[%clk 0:00:03.7]}
44... Ke7 {[%clk 0:00:10]} 45. Kf4 {[%clk 0:00:04]} 45... Kd6 {[%clk 0:00:10.5]}
46. Nd3 {[%clk 0:00:03.6]} 46... Bb5 {[%clk 0:00:10.8]} 47. Nf2 {[%clk
0:00:03.8]} 47... g6 {[%clk 0:00:11.3]} 48. Ne4+ {[%clk 0:00:03.8]} 48... Ke7
{[%clk 0:00:11.2]} 49. Nc3 {[%clk 0:00:04.3]} 49... Bc6 {[%clk 0:00:11.2]} 50.
Ne2 {[%clk 0:00:04.9]} 50... h6 {[%clk 0:00:11]} 51. Nd4 {[%clk 0:00:05.4]}
51... Bd7 {[%clk 0:00:11.2]} 52. Ne2 {[%clk 0:00:04.9]} 52... Kd6 {[%clk
0:00:11.5]} 53. Nc3 {[%clk 0:00:04.8]} 53... g5+ {[%clk 0:00:12]} 54. hxg5
{[%clk 0:00:04.9]} 54... hxg5+ {[%clk 0:00:12.9]} 55. Ke4 {[%clk 0:00:05.4]}
55... Be6 {[%clk 0:00:12]} 56. Ne2 {[%clk 0:00:04.9]} 56... Bc8 {[%clk
0:00:11.3]} 57. Nd4 {[%clk 0:00:05.3]} 57... Bd7 {[%clk 0:00:11.6]} 58. Ne2
{[%clk 0:00:05]} 58... f5+ {[%clk 0:00:11.7]} 59. Ke3 {[%clk 0:00:05]} 59... Ke5
{[%clk 0:00:11.6]} 60. Nc3 {[%clk 0:00:04.9]} 60... Bc6 {[%clk 0:00:12]} 61. Ne2
{[%clk 0:00:05]} 61... Bb7 {[%clk 0:00:11.6]} 62. Nc3 {[%clk 0:00:04.6]} 62...
Bc6 {[%clk 0:00:12]} 63. Ne2 {[%clk 0:00:04.9]} 63... Kf6 {[%clk 0:00:12.6]} 64.
Nd4 {[%clk 0:00:05.1]} 64... Bd7 {[%clk 0:00:12.4]} 65. Ne2 {[%clk 0:00:05.4]}
65... Kg6 {[%clk 0:00:12.8]} 66. Nd4 {[%clk 0:00:05.9]} 66... Kh5 {[%clk
0:00:12.9]} 67. Nf3 {[%clk 0:00:06.2]} 67... Bc8 {[%clk 0:00:11.5]} 68. Ne5
{[%clk 0:00:06.6]} 68... Be6 {[%clk 0:00:10.3]} 69. Kf2 {[%clk 0:00:06.8]} 69...
Kh6 {[%clk 0:00:08.8]} 70. Ke3 {[%clk 0:00:05.9]} 70... Kg7 {[%clk 0:00:09.4]}
71. Kd4 {[%clk 0:00:05.7]} 71... Kf6 {[%clk 0:00:10]} 72. Nd3 {[%clk 0:00:04.3]}
72... Bc8 {[%clk 0:00:09.9]} 73. Ne5 {[%clk 0:00:04.1]} 73... Bb7 {[%clk
0:00:10.3]} 74. Nd3 {[%clk 0:00:04.1]} 74... Kg6 {[%clk 0:00:10.3]} 75. Nc5
{[%clk 0:00:04]} 75... Bg2 {[%clk 0:00:09.9]} 76. Nd3 {[%clk 0:00:04.2]} 76...
Kh5 {[%clk 0:00:10.2]} 77. Ke3 {[%clk 0:00:04.7]} 77... Kg4 {[%clk 0:00:10.2]}
78. Kf2 {[%clk 0:00:05.3]} 78... Be4 {[%clk 0:00:10.4]} 79. Ne5+ {[%clk
0:00:05.6]} 79... Kh3 {[%clk 0:00:10.6]} 80. Nf7 {[%clk 0:00:02.1]} 80... g4
{[%clk 0:00:09]} 81. Ng5+ {[%clk 0:00:02.5]} 81... Kh2 {[%clk 0:00:09.4]} 82.
Ne6 {[%clk 0:00:02.1]} 82... Bc6 {[%clk 0:00:08.6]} 83. Nf4 {[%clk 0:00:02.6]}
83... Bb5 {[%clk 0:00:08.9]} 84. Nh5 {[%clk 0:00:02.9]} 84... Bd3 {[%clk
0:00:08.5]} 85. Nf4 {[%clk 0:00:03.4]} 85... Bc4 {[%clk 0:00:08.9]} 86. Nh5
{[%clk 0:00:02.5]} 86... Bg8 {[%clk 0:00:08.5]} 87. Nf4 {[%clk 0:00:02.2]} 87...
Bf7 {[%clk 0:00:09]} 88. Nd3 {[%clk 0:00:02.4]} 88... Kh1 {[%clk 0:00:08.9]} 89.
Nf4 {[%clk 0:00:02.8]} 89... Kh2 {[%clk 0:00:09.4]} 90. Ng2 {[%clk 0:00:03.2]}
90... Bd5 {[%clk 0:00:08.8]} 91. Ne3 {[%clk 0:00:03.2]} 91... Be4 {[%clk
0:00:09.3]} 92. Nf1+ {[%clk 0:00:02.2]} 92... Kh3 {[%clk 0:00:09.2]} 93. Ne3
{[%clk 0:00:02.6]} 93... f4 {[%clk 0:00:09.5]} 94. gxf4 {[%clk 0:00:03.5]} 94...
g3+ {[%clk 0:00:09.7]} 95. Kg1 {[%clk 0:00:04.2]} 95... Kh4 {[%clk 0:00:10.1]}
96. Nf1 {[%clk 0:00:04.4]} 96... Kg4 {[%clk 0:00:09.3]} 97. Nxg3 {[%clk
0:00:04.6]} 97... Kxf4 {[%clk 0:00:09.9]} 1/2-1/2

[Event "*** SCC Grand Prix: Titled Tuesday Blitz"]
[Site "Chess.com"]
[Date "2020.10.13"]
[Round "4"]
[White "crazy_but_lazy"]
[Black "Al_Shima"]
[Result "1/2-1/2"]
[WhiteElo "2501"]
[BlackElo "2348"]
[TimeControl "180+1"]
[EndTime "10:42:40 PDT"]
[Termination "Game drawn - insufficient material"]

1. e4 {[%clk 0:03:00.9]} 1... d5 {[%clk 0:02:59.4]} 2. exd5 {[%clk 0:03:00.9]}
2... Nf6 {[%clk 0:02:59.5]} 3. d4 {[%clk 0:03:00.1]} 3... Nxd5 {[%clk
0:02:59.5]} 4. Nf3 {[%clk 0:03:00.2]} 4... Bf5 {[%clk 0:02:59]} 5. Be2 {[%clk
0:02:55.7]} 5... e6 {[%clk 0:02:58.7]} 6. O-O {[%clk 0:02:55.2]} 6... Be7 {[%clk
0:02:58.3]} 7. a3 {[%clk 0:02:29.6]} 7... O-O {[%clk 0:02:57]} 8. c4 {[%clk
0:02:29.5]} 8... Nb6 {[%clk 0:02:57.7]} 9. Nc3 {[%clk 0:02:29.9]} 9... Nc6
{[%clk 0:02:58.3]} 10. Be3 {[%clk 0:02:29.7]} 10... Bf6 {[%clk 0:02:58.8]} 11.
Qd2 {[%clk 0:02:22.6]} 11... Na5 {[%clk 0:02:54.3]} 12. Ne4 {[%clk 0:02:02.2]}
12... Nb3 {[%clk 0:02:34.1]} 13. Nxf6+ {[%clk 0:02:02.7]} 13... Qxf6 {[%clk
0:02:34.1]} 14. Qc3 {[%clk 0:02:03.6]} 14... Nxa1 {[%clk 0:02:33.1]} 15. Rxa1
{[%clk 0:02:04.5]} 15... h6 {[%clk 0:02:31.1]} 16. b4 {[%clk 0:01:59.2]} 16...
Rfd8 {[%clk 0:02:30.1]} 17. a4 {[%clk 0:01:58.5]} 17... c6 {[%clk 0:02:22.4]}
18. a5 {[%clk 0:01:58.1]} 18... Nc8 {[%clk 0:02:21.1]} 19. Ne5 {[%clk
0:01:44.5]} 19... a6 {[%clk 0:02:17.5]} 20. Bf3 {[%clk 0:01:35.4]} 20... Nd6
{[%clk 0:02:14.9]} 21. h3 {[%clk 0:01:30.7]} 21... Be4 {[%clk 0:02:13.3]} 22.
Bxe4 {[%clk 0:01:18.4]} 22... Nxe4 {[%clk 0:02:12.8]} 23. Qc2 {[%clk 0:01:19]}
23... Nd6 {[%clk 0:02:10.1]} 24. g4 {[%clk 0:01:15.4]} 24... Nc8 {[%clk
0:01:58.5]} 25. Kg2 {[%clk 0:01:08.9]} 25... Ne7 {[%clk 0:01:58]} 26. f4 {[%clk
0:01:05]} 26... Ng6 {[%clk 0:01:57]} 27. Rf1 {[%clk 0:00:35]} 27... Nxe5 {[%clk
0:01:47.6]} 28. fxe5 {[%clk 0:00:35.9]} 28... Qg6 {[%clk 0:01:46.1]} 29. Qxg6
{[%clk 0:00:25.4]} 29... fxg6 {[%clk 0:01:47]} 30. Rf4 {[%clk 0:00:20.4]} 30...
g5 {[%clk 0:01:45.1]} 31. Rf2 {[%clk 0:00:19.6]} 31... Rf8 {[%clk 0:01:43.6]}
32. Rb2 {[%clk 0:00:19.4]} 32... Kf7 {[%clk 0:01:34.4]} 33. Kf3 {[%clk
0:00:18.8]} 33... Kg6+ {[%clk 0:01:30.6]} 34. Ke4 {[%clk 0:00:17.7]} 34... h5
{[%clk 0:01:30.7]} 35. Rd2 {[%clk 0:00:14.6]} 35... hxg4 {[%clk 0:01:23.8]} 36.
hxg4 {[%clk 0:00:14.8]} 36... Rad8 {[%clk 0:01:23.3]} 37. Rb2 {[%clk 0:00:14.3]}
37... Rf1 {[%clk 0:01:21.2]} 38. b5 {[%clk 0:00:12.8]} 38... cxb5 {[%clk
0:01:07.3]} 39. cxb5 {[%clk 0:00:13.7]} 39... Rd5 {[%clk 0:01:05.2]} 40. bxa6
{[%clk 0:00:13]} 40... bxa6 {[%clk 0:01:06.1]} 41. Rb6 {[%clk 0:00:13.7]} 41...
Kf7 {[%clk 0:01:01]} 42. Rxa6 {[%clk 0:00:14]} 42... Ra1 {[%clk 0:01:00]} 43.
Ra7+ {[%clk 0:00:13.8]} 43... Kg6 {[%clk 0:00:59.3]} 44. Re7 {[%clk 0:00:14]}
44... Raxa5 {[%clk 0:00:55.3]} 45. Rxe6+ {[%clk 0:00:14.5]} 45... Kf7 {[%clk
0:00:55.4]} 46. Rb6 {[%clk 0:00:14.8]} 46... Rdb5 {[%clk 0:00:54.9]} 47. Rc6
{[%clk 0:00:13.9]} 47... Ra1 {[%clk 0:00:41.9]} 48. Bxg5 {[%clk 0:00:11.7]}
48... Re1+ {[%clk 0:00:40.8]} 49. Kf5 {[%clk 0:00:11.9]} 49... g6+ {[%clk
0:00:38.1]} 50. Kf4 {[%clk 0:00:10.8]} 50... Rb4 {[%clk 0:00:28.6]} 51. Rc7+
{[%clk 0:00:08.9]} 51... Ke6 {[%clk 0:00:20.5]} 52. Re7+ {[%clk 0:00:08.2]}
52... Kd5 {[%clk 0:00:20.4]} 53. Rd7+ {[%clk 0:00:09.1]} 53... Kc6 {[%clk
0:00:18.9]} 54. Rd6+ {[%clk 0:00:09.3]} 54... Kc7 {[%clk 0:00:19]} 55. Bf6
{[%clk 0:00:09.8]} 55... Rb2 {[%clk 0:00:16.6]} 56. Kg5 {[%clk 0:00:09.1]} 56...
Rg2 {[%clk 0:00:16.4]} 57. Kxg6 {[%clk 0:00:09.3]} 57... Rxg4+ {[%clk
0:00:16.5]} 58. Kf7 {[%clk 0:00:09.5]} 58... Rd1 {[%clk 0:00:15.3]} 59. Rd5
{[%clk 0:00:08.6]} 59... Rgxd4 {[%clk 0:00:13.6]} 60. Rc5+ {[%clk 0:00:08.6]}
60... Kb6 {[%clk 0:00:12.2]} 61. Rc2 {[%clk 0:00:08.7]} 61... Re4 {[%clk
0:00:08.8]} 62. Rb2+ {[%clk 0:00:08.1]} 62... Kc6 {[%clk 0:00:08.3]} 63. Rc2+
{[%clk 0:00:08.4]} 63... Kd5 {[%clk 0:00:08.1]} 64. Rc8 {[%clk 0:00:08.7]} 64...
Rf1 {[%clk 0:00:07]} 65. Rd8+ {[%clk 0:00:08.6]} 65... Kc6 {[%clk 0:00:06.5]}
66. Ke6 {[%clk 0:00:09]} 66... Re2 {[%clk 0:00:05]} 67. Rc8+ {[%clk 0:00:09.3]}
67... Kb7 {[%clk 0:00:05.3]} 68. Rc3 {[%clk 0:00:10.2]} 68... Rfe1 {[%clk
0:00:05.9]} 69. Kd6 {[%clk 0:00:09.9]} 69... Rd2+ {[%clk 0:00:04.8]} 70. Ke7
{[%clk 0:00:10.1]} 70... Rde2 {[%clk 0:00:05.7]} 71. Ke6 {[%clk 0:00:10.5]}
71... Rd2 {[%clk 0:00:05.9]} 72. Be7 {[%clk 0:00:10.3]} 72... Rde2 {[%clk
0:00:06.8]} 73. Bd6 {[%clk 0:00:10.7]} 73... Kb6 {[%clk 0:00:06.6]} 74. Kd7
{[%clk 0:00:10.9]} 74... Kb5 {[%clk 0:00:07.5]} 75. Rb3+ {[%clk 0:00:11.3]}
75... Kc4 {[%clk 0:00:07.4]} 76. Rb4+ {[%clk 0:00:11.8]} 76... Kc3 {[%clk
0:00:07.1]} 77. Rh4 {[%clk 0:00:11.6]} 77... Kd3 {[%clk 0:00:06.7]} 78. Rh6
{[%clk 0:00:11]} 78... Re4 {[%clk 0:00:06.5]} 79. Kc6 {[%clk 0:00:10.9]} 79...
Kc4 {[%clk 0:00:06.1]} 80. Rh5 {[%clk 0:00:09.1]} 80... Kd3 {[%clk 0:00:07]} 81.
Kd5 {[%clk 0:00:09.2]} 81... R1e2 {[%clk 0:00:07.4]} 82. Rh3+ {[%clk 0:00:08.5]}
82... R4e3 {[%clk 0:00:08.3]} 83. Rh8 {[%clk 0:00:08.7]} 83... Re4 {[%clk
0:00:08.1]} 84. Rb8 {[%clk 0:00:09]} 84... Kc2 {[%clk 0:00:07.1]} 85. Rc8+
{[%clk 0:00:09]} 85... Kd3 {[%clk 0:00:07]} 86. Ra8 {[%clk 0:00:09.7]} 86...
R4e3 {[%clk 0:00:07]} 87. Ra3+ {[%clk 0:00:10.1]} 87... Kc2 {[%clk 0:00:05.6]}
88. Ra8 {[%clk 0:00:06.3]} 88... Kb3 {[%clk 0:00:05]} 89. Rb8+ {[%clk
0:00:06.7]} 89... Kc2 {[%clk 0:00:05.9]} 90. Rc8+ {[%clk 0:00:06.8]} 90... Kd1
{[%clk 0:00:05.9]} 91. Ra8 {[%clk 0:00:07.7]} 91... Rd3+ {[%clk 0:00:05.9]} 92.
Kc5 {[%clk 0:00:07.4]} 92... Rde3 {[%clk 0:00:06.8]} 93. Kd5 {[%clk 0:00:07.7]}
93... Rd3+ {[%clk 0:00:07]} 94. Ke6 {[%clk 0:00:08.5]} 94... Rde3 {[%clk
0:00:07.9]} 95. Ra1+ {[%clk 0:00:08.9]} 95... Kc2 {[%clk 0:00:07.4]} 96. Kd5
{[%clk 0:00:09.3]} 96... Kb3 {[%clk 0:00:08.3]} 97. Ra7 {[%clk 0:00:08.4]} 97...
Kb2 {[%clk 0:00:08.1]} 98. Rb7+ {[%clk 0:00:08.7]} 98... Kc2 {[%clk 0:00:08.3]}
99. Rc7+ {[%clk 0:00:09.1]} 99... Kd1 {[%clk 0:00:07.7]} 100. Kd4 {[%clk
0:00:08.3]} 100... Re4+ {[%clk 0:00:06.2]} 101. Kd5 {[%clk 0:00:08.6]} 101...
R4e3 {[%clk 0:00:06.3]} 102. Ra7 {[%clk 0:00:08.7]} 102... Rd3+ {[%clk
0:00:06.3]} 103. Kc4 {[%clk 0:00:07.5]} 103... Rde3 {[%clk 0:00:07.2]} 104. Kd4
{[%clk 0:00:07.2]} 104... Re4+ {[%clk 0:00:06.5]} 105. Kd5 {[%clk 0:00:07.5]}
105... R4e3 {[%clk 0:00:06.4]} 106. Ra1+ {[%clk 0:00:08.2]} 106... Kc2 {[%clk
0:00:06.4]} 107. Ra2+ {[%clk 0:00:09.1]} 107... Kb3 {[%clk 0:00:06.5]} 108. Rxe2
{[%clk 0:00:10]} 108... Rxe2 {[%clk 0:00:07.4]} 109. e6 {[%clk 0:00:10.6]}
109... Rxe6 {[%clk 0:00:07.1]} 110. Kxe6 {[%clk 0:00:08.2]} 1/2-1/2

[Event "*** SCC Grand Prix: Titled Tuesday Blitz"]
[Site "Chess.com"]
[Date "2020.10.13"]
[Round "5"]
[White "diamonds13"]
[Black "Maksimus1998"]
[Result "0-1"]
[WhiteElo "2410"]
[BlackElo "2612"]
[TimeControl "180+1"]
[EndTime "10:51:30 PDT"]
[Termination "Maksimus1998 won by resignation"]

1. d4 {[%clk 0:03:00.9]} 1... d5 {[%clk 0:02:59.2]} 2. c4 {[%clk 0:03:01.1]}
2... c6 {[%clk 0:02:59.1]} 3. Nf3 {[%clk 0:03:01.2]} 3... Nf6 {[%clk 0:02:58.8]}
4. Nbd2 {[%clk 0:02:58.2]} 4... Bf5 {[%clk 0:02:56.9]} 5. g3 {[%clk 0:02:58.3]}
5... e6 {[%clk 0:02:55.5]} 6. Bg2 {[%clk 0:02:58.5]} 6... h6 {[%clk 0:02:55.3]}
7. O-O {[%clk 0:02:58.6]} 7... Be7 {[%clk 0:02:54.3]} 8. b3 {[%clk 0:02:58.4]}
8... O-O {[%clk 0:02:54.3]} 9. Bb2 {[%clk 0:02:59.1]} 9... a5 {[%clk 0:02:54.5]}
10. a3 {[%clk 0:02:58.4]} 10... Nbd7 {[%clk 0:02:51.9]} 11. Ne5 {[%clk
0:02:58.5]} 11... Ne4 {[%clk 0:02:38]} 12. Nxe4 {[%clk 0:02:46.5]} 12... Bxe4
{[%clk 0:02:38.9]} 13. f3 {[%clk 0:02:46.7]} 13... Bh7 {[%clk 0:02:38.4]} 14.
Qc1 {[%clk 0:02:43.3]} 14... Nxe5 {[%clk 0:02:36.6]} 15. dxe5 {[%clk 0:02:43.2]}
15... Qb6+ {[%clk 0:02:36.2]} 16. Kh1 {[%clk 0:02:32.3]} 16... Qxb3 {[%clk
0:02:35.8]} 17. c5 {[%clk 0:02:27.2]} 17... Qc4 {[%clk 0:02:30.1]} 18. Qxc4
{[%clk 0:02:24.5]} 18... dxc4 {[%clk 0:02:30.3]} 19. Bd4 {[%clk 0:02:24.7]}
19... Rfd8 {[%clk 0:02:28.2]} 20. Rfd1 {[%clk 0:02:23.2]} 20... c3 {[%clk
0:02:23.9]} 21. e4 {[%clk 0:02:16.9]} 21... c2 {[%clk 0:02:22.6]} 22. Rd2 {[%clk
0:02:16.8]} 22... Bxc5 {[%clk 0:02:22]} 23. Bc3 {[%clk 0:02:09.7]} 23... Rxd2
{[%clk 0:02:20]} 24. Bxd2 {[%clk 0:02:09.7]} 24... Rd8 {[%clk 0:02:18.9]} 0-1